Cogmind - Beta 15 @@@ ROGUE MODE // 2025.08.05 @ 14:21:53 Player: shapeshifter Result: Destroyed by S-27 Virus with Autogun Performance ------------- Evolutions (5) 2500 Regions Visited (12) 2400 Robots Destroyed (0) 0 Value Destroyed (0) 0 Prototype IDs (13) 260 Alien Tech Used (1) 200 Bonus (2032) 2032 TOTAL SCORE: 7392 Bonus ------- Pacifist 932 Entered DSFs 500 Registered with UFD 300 Met Zhirov 300 Cogmind --------- Core Integrity 0/1000 Matter 149/300 Energy 331/340 System Corruption 1% Temperature Cool (3) Movement Walking (120) Location -4/Proximity Caves Parts ------- > --- POWER (2) -------- Heavy Antimatter Reactor > --- PROPULSION (8) --- Advanced Myomer Leg Advanced Myomer Leg Advanced Myomer Leg > --- UTILITY (5) ------ Small Storage Unit Advanced System Shield > --- WEAPON (2) ------- (None) > --- INVENTORY (8) ---- Mapping Drone Bay (3/3) Transdimensional Reconstructor Mini Grenade Launcher Companion Sword Peak State ------------ > --- POWER ------------ Heavy Antimatter Reactor > --- PROPULSION ------- Advanced Myomer Leg Advanced Myomer Leg Advanced Myomer Leg > --- UTILITY ---------- Small Storage Unit Advanced System Shield > --- WEAPON ----------- (None) > --- INVENTORY -------- Mapping Drone Bay Transdimensional Reconstructor Mini Grenade Launcher Companion Sword [Rating: 41] Favorites ----------- Power Heavy Antimatter Reactor Reactor Heavy Antimatter Reactor Propulsion Advanced Myomer Leg Leg Advanced Myomer Leg Utility Advanced System Shield Device Advanced Heat Sink Storage Small Storage Unit Processor Surveybot 17 Chip Hackware Advanced System Shield Protection Improved Light Armor Plating Weapon Companion Sword Slashing Weapon Companion Sword Build | -11 -10 -10 -9 -6 -6 -6 -6 -5 -5 -5 -5 -4 ------- Run | Yrd Mat Sub Scr Fac Was Fac DSF Fac Upp Upp Zhi Pro Slots Evolved 10 | . . . . 8 . . . 2 . . . . Power 1 | . . . . 1 . . . . . . . . Propulsion 6 | . . . . 4 . . . 2 . . . . Utility 3 | . . . . 3 . . . . . . . . Weapon . | . . . . . . . . . . . . . Parts Attached 13 | . . . 4 1 . . . 2 . . 6 . Power 1 | . . . . . . . . . . . 1 . Engine . | . . . . . . . . . . . . . Core . | . . . . . . . . . . . . . Reactor 1 | . . . . . . . . . . . 1 . Propulsion 3 | . . . . . . . . . . . 3 . Treads . | . . . . . . . . . . . . . Leg 3 | . . . . . . . . . . . 3 . Wheel . | . . . . . . . . . . . . . Hover . | . . . . . . . . . . . . . Flight . | . . . . . . . . . . . . . Utility 8 | . . . 3 1 . . . 2 . . 2 . Device 3 | . . . 2 1 . . . . . . . . Storage 1 | . . . . . . . . . . . 1 . Processor 1 | . . . 1 . . . . . . . . . Hackware 2 | . . . . . . . . 1 . . 1 . Protection 1 | . . . . . . . . 1 . . . . Artifact . | . . . . . . . . . . . . . Weapon 1 | . . . 1 . . . . . . . . . Energy Gun . | . . . . . . . . . . . . . Energy Cannon . | . . . . . . . . . . . . . Ballistic Gun . | . . . . . . . . . . . . . Ballistic Cannon . | . . . . . . . . . . . . . Launcher . | . . . . . . . . . . . . . Special Weapon . | . . . . . . . . . . . . . Impact Weapon . | . . . . . . . . . . . . . Slashing Weapon 1 | . . . 1 . . . . . . . . . Piercing Weapon . | . . . . . . . . . . . . . Special Melee Weapon . | . . . . . . . . . . . . . Unidentified Prototypes 3 | . . . 1 . . . . . . . 2 . Parts Lost 3 | . . . . 1 . . . . 2 . . . Power . | . . . . . . . . . . . . . Propulsion . | . . . . . . . . . . . . . Utility 3 | . . . . 1 . . . . 2 . . . Weapon . | . . . . . . . . . . . . . Highest Loss Streak 2 | . . . . 1 . . . . 2 . . . To Critical Strikes . | . . . . . . . . . . . . . Average Backups 3 | . 1 2 3 3 4 4 4 4 4 4 4 4 Power . | . . . . . . . . . . . . . Propulsion . | . . . . . . . . . . . . . Utility 1 | . 1 1 1 1 2 2 2 2 2 2 1 1 Weapon 1 | . . . . 1 2 2 2 2 2 2 2 2 Tool/Special . | . . . . . . . . . . . . . Unused Backups 9 | . . . 6 1 . . . . . . . 2 Power 2 | . . . 1 1 . . . . . . . . Propulsion 1 | . . . 1 . . . . . . . . . Utility 2 | . . . 2 . . . . . . . . . Weapon 2 | . . . 1 . . . . . . . . 1 Tool/Special 2 | . . . 1 . . . . . . . . 1 Average Slot Usage (%) 12 | . . . 16 9 . . . 4 3 . 17 34 Leg 3 | . . . . . . . . . . . 10 16 Device 2 | . . . 8 4 . . . . . . . . Hackware 1 | . . . . . . . . . 1 . 2 5 Slashing Weapon 1 | . . . 5 1 . . . . . . . . Peak Build Rating 41 | . . . 20 20 1 1 1 9 9 1 41 41 Average Rating 11 | . . . 7 12 1 1 1 4 3 1 24 40 On Entrance 5 | . . . . 20 1 1 1 1 9 1 1 41 Naked Turns 957 | . 40 266 251 33 48 10 34 20 87 126 42 . Heaviest Build 23 | . . . 8 8 . . . 3 3 . 23 23 Greatest Support 90 | 3 3 3 3 3 3 3 3 3 3 3 90 90 Greatest Overweight (x) 2 | . . . 2 2 . . . . . . . . Average Overweight (x) . | . . . . . . . . . . . . . Largest Inventory Capacity 8 | 5 5 5 5 5 5 5 5 5 5 5 8 8 Average Capacity 5 | 5 5 5 5 5 5 5 5 5 5 5 5 8 Most Carried 5 | 1 1 5 5 5 4 4 4 5 4 4 5 5 Average Carried 3 | . 1 1 4 4 4 4 4 4 4 4 4 4 Final Capacity 8 | 5 5 5 5 5 5 5 5 5 5 5 8 8 Final Carried 5 | 1 1 5 5 4 4 4 4 4 4 4 4 4 Class Distribution -------------------- 100% | Mutant Dominant Class ---------------- Mutant | -10/Materials Mutant | -10/Subcaves Mutant | -9/Scraptown Mutant | -6/Factory Mutant | -6/Waste Mutant | -6/Factory Mutant | -6/DSF Mutant | -5/Factory Mutant | -5/Upper Caves Mutant | -5/Upper Caves Mutant | -5/Zhirov Mutant | -4/Proximity Caves Resources | -11 -10 -10 -9 -6 -6 -6 -6 -5 -5 -5 -5 -4 ----------- Run | Yrd Mat Sub Scr Fac Was Fac DSF Fac Upp Upp Zhi Pro Matter Collected 457 | 200 . . 10 8 . . 15 . 197 . . 27 Remotely . | . . . . . . . . . . . . . Salvage Created . | . . . . . . . . . . . . . Parts . | . . . . . . . . . . . . . Haulers Intercepted . | . . . . . . . . . . . . . Recyclers Shooed . | . . . . . . . . . . . . . Parts Field Recycled . | . . . . . . . . . . . . . Retrieved Matter . | . . . . . . . . . . . . . Parts Self-Destructed 12 | . . 7 . . . . . . 5 . . . Prevented . | . . . . . . . . . . . . . Kills | -11 -10 -10 -9 -6 -6 -6 -6 -5 -5 -5 -5 -4 ------- Run | Yrd Mat Sub Scr Fac Was Fac DSF Fac Upp Upp Zhi Pro Combat Hostiles Destroyed . | . . . . . . . . . . . . . Classes Destroyed . | . . . . . . . . . . . . . Best Kill Streak . | . . . . . . . . . . . . . Combat Bots Only . | . . . . . . . . . . . . . Max Kills in Single Turn . | . . . . . . . . . . . . . Gunslinging . | . . . . . . . . . . . . . Exploded . | . . . . . . . . . . . . . Melee . | . . . . . . . . . . . . . Uniques/NPCs Destroyed . | . . . . . . . . . . . . . Combat | -11 -10 -10 -9 -6 -6 -6 -6 -5 -5 -5 -5 -4 -------- Run | Yrd Mat Sub Scr Fac Was Fac DSF Fac Upp Upp Zhi Pro Hostile Shots Fired 269 | . . 2 . 49 . . 15 . 82 11 . 110 Missed 127 | . . 2 . 21 . . 11 . 36 3 . 54 Hits 142 | . . . . 28 . . 4 . 46 8 . 56 Projectile 142 | . . . . 28 . . 4 . 46 8 . 56 Critical Strikes 2 | . . . . 1 . . . . . . . 1 Damage Taken 2422 | . . . . 538 . . 68 56 734 161 . 865 Core 1485 | . . . . 407 . . 68 24 563 161 . 262 Absorbed by Shields . | . . . . . . . . . . . . . Core Remaining (%) 81 | 100 . . 100 . . . 44 . . . . . Volleys Fired . | . . . . . . . . . . . . . Largest . | . . . . . . . . . . . . . Hottest . | . . . . . . . . . . . . . Shots Fired . | . . . . . . . . . . . . . Gun . | . . . . . . . . . . . . . Cannon . | . . . . . . . . . . . . . Launcher . | . . . . . . . . . . . . . Special . | . . . . . . . . . . . . . Kinetic . | . . . . . . . . . . . . . Thermal . | . . . . . . . . . . . . . Explosive . | . . . . . . . . . . . . . Electromagnetic . | . . . . . . . . . . . . . Robot Hit Streak . | . . . . . . . . . . . . . Robot Miss Streak . | . . . . . . . . . . . . . Penetration Max . | . . . . . . . . . . . . . Secondary Targets . | . . . . . . . . . . . . . Shots Hit Robots . | . . . . . . . . . . . . . Core Hits . | . . . . . . . . . . . . . Critical Kills . | . . . . . . . . . . . . . Critical Parts Destroyed . | . . . . . . . . . . . . . Critical Strikes . | . . . . . . . . . . . . . Melee Attacks . | . . . . . . . . . . . . . Impact . | . . . . . . . . . . . . . Slashing . | . . . . . . . . . . . . . Piercing . | . . . . . . . . . . . . . Sneak Attacks . | . . . . . . . . . . . . . Combat Hostiles . | . . . . . . . . . . . . . Follow-up Attacks . | . . . . . . . . . . . . . Damage Inflicted . | . . . . . . . . . . . . . Guns . | . . . . . . . . . . . . . Cannons . | . . . . . . . . . . . . . Explosions . | . . . . . . . . . . . . . Melee . | . . . . . . . . . . . . . Ramming . | . . . . . . . . . . . . . Kinetic . | . . . . . . . . . . . . . Thermal . | . . . . . . . . . . . . . Explosive . | . . . . . . . . . . . . . Electromagnetic . | . . . . . . . . . . . . . Impact . | . . . . . . . . . . . . . Slashing . | . . . . . . . . . . . . . Piercing . | . . . . . . . . . . . . . Highest Corruption 7 | . . . . . 7 7 7 1 1 1 1 1 Average Corruption 1 | . . . . . 7 7 7 1 1 1 1 1 Corruption Purged . | . . . . . . . . . . . . . Corruption Blocked . | . . . . . . . . . . . . . Effects 8 | . . . . . 1 . 1 . . 2 . 4 Matter Fused 1 | . . . . . . . . . . . . 1 Energy Discharges 3 | . . . . . . . 1 . . 2 . . Data Loss (minor) 3 | . . . . . 1 . . . . . . 2 Alerts 1 | . . . . . . . . . . . . 1 Overload Shots . | . . . . . . . . . . . . . Overflow Damage . | . . . . . . . . . . . . . Projectiles . | . . . . . . . . . . . . . Explosions . | . . . . . . . . . . . . . Melee . | . . . . . . . . . . . . . Knockbacks . | . . . . . . . . . . . . . Impact . | . . . . . . . . . . . . . Kinetic . | . . . . . . . . . . . . . Secondary . | . . . . . . . . . . . . . Self-Inflicted Damage . | . . . . . . . . . . . . . Shots . | . . . . . . . . . . . . . Rammed . | . . . . . . . . . . . . . Targets Rammed . | . . . . . . . . . . . . . Kicked . | . . . . . . . . . . . . . Crushed . | . . . . . . . . . . . . . Highest Temperature . | . . . . . . . . . . . . . Average Temperature . | . . . . . . . . . . . . . Received Heat Transfer 96 | . . . . 12 . . . . . 57 . 27 Siege Activations . | . . . . . . . . . . . . . Martial Activations . | . . . . . . . . . . . . . Shielding Activations . | . . . . . . . . . . . . . Robots Disrupted . | . . . . . . . . . . . . . Combat Hostiles . | . . . . . . . . . . . . . Robots Corrupted . | . . . . . . . . . . . . . Combat Hostiles . | . . . . . . . . . . . . . Parts Fried . | . . . . . . . . . . . . . Impact Corruptions . | . . . . . . . . . . . . . Robots Melted . | . . . . . . . . . . . . . Combat Hostiles . | . . . . . . . . . . . . . Parts Melted . | . . . . . . . . . . . . . Heat Transferred . | . . . . . . . . . . . . . Parts Sabotaged . | . . . . . . . . . . . . . Parts Stolen . | . . . . . . . . . . . . . Parts Stripped . | . . . . . . . . . . . . . Power Chain Reactions . | . . . . . . . . . . . . . Alert | -11 -10 -10 -9 -6 -6 -6 -6 -5 -5 -5 -5 -4 ------- Run | Yrd Mat Sub Scr Fac Was Fac DSF Fac Upp Upp Zhi Pro Maximum Alert Level . | . . . . . . . . . . . . . Low Security (%) 100 | 100 100 . . 100 100 100 100 100 . . . . Level 1 . | . . . . . . . . . . . . . Level 2 . | . . . . . . . . . . . . . Level 3 . | . . . . . . . . . . . . . Level 4 . | . . . . . . . . . . . . . Level 5 . | . . . . . . . . . . . . . High Security . | . . . . . . . . . . . . . Max Security . | . . . . . . . . . . . . . Peak Influence 18 | . . . . . . . 3 18 . . . . Initial 3 | . . . . . . . 3 1 . . . . Average . | . . . . . . . 3 1 . . . . Influence Increases 263 | . . 15 . . . 5 . 18 165 45 . 15 Successful Hack 23 | . . . . . . 5 . 18 . . . . Lose Combat Pursuer 240 | . . 15 . . . . . . 165 45 . 15 Influence Decreases 263 | . . 10 5 . . . 2 3 88 79 61 15 Entered New Map 97 | . . . 5 . . . 2 2 8 19 61 . Time Decay 146 | . . 10 . . . . . 1 60 60 . 15 Lost Part 20 | . . . . . . . . . 20 . . . Squads Dispatched 2 | . . . . 1 . . . 1 . . . . Investigation 2 | . . . . 1 . . . 1 . . . . Extermination . | . . . . . . . . . . . . . Reinforcement . | . . . . . . . . . . . . . Assault . | . . . . . . . . . . . . . Garrison . | . . . . . . . . . . . . . Intercept . | . . . . . . . . . . . . . Searches Triggered . | . . . . . . . . . . . . . Construction Impeded . | . . . . . . . . . . . . . Haulers Reinforced . | . . . . . . . . . . . . . Active Scanning Responses . | . . . . . . . . . . . . . Cargo Convoy Interrupts . | . . . . . . . . . . . . . Stealth | -11 -10 -10 -9 -6 -6 -6 -6 -5 -5 -5 -5 -4 --------- Run | Yrd Mat Sub Scr Fac Was Fac DSF Fac Upp Upp Zhi Pro Distress Signals . | . . . . . . . . . . . . . Communications Jammed . | . . . . . . . . . . . . . Distress Signals . | . . . . . . . . . . . . . Times Spotted 46 | . . 4 . 6 5 . 4 2 11 6 . 8 Peak Tracking Total 7 | . . 2 . 6 5 . 4 2 7 3 . 6 Tactical Retreats 6 | . . 1 . . . . . . 3 1 . 1 Traps | -11 -10 -10 -9 -6 -6 -6 -6 -5 -5 -5 -5 -4 ------- Run | Yrd Mat Sub Scr Fac Was Fac DSF Fac Upp Upp Zhi Pro Traps Triggered 4 | . . . . 1 . . 2 1 . . . . Indirectly . | . . . . . . . . . . . . . Trap Hack Attempts . | . . . . . . . . . . . . . Triggered . | . . . . . . . . . . . . . Disarmed . | . . . . . . . . . . . . . Reprogrammed . | . . . . . . . . . . . . . Reused . | . . . . . . . . . . . . . Traps Extracted . | . . . . . . . . . . . . . Installed . | . . . . . . . . . . . . . Triggered . | . . . . . . . . . . . . . Machines | -11 -10 -10 -9 -6 -6 -6 -6 -5 -5 -5 -5 -4 ---------- Run | Yrd Mat Sub Scr Fac Was Fac DSF Fac Upp Upp Zhi Pro Machines Disabled . | . . . . . . . . . . . . . Max in Single Turn . | . . . . . . . . . . . . . Machines Repaired . | . . . . . . . . . . . . . Machines Dismantled . | . . . . . . . . . . . . . Machines Sabotaged . | . . . . . . . . . . . . . Overloaded Fab Kills . | . . . . . . . . . . . . . Hacking | -11 -10 -10 -9 -6 -6 -6 -6 -5 -5 -5 -5 -4 --------- Run | Yrd Mat Sub Scr Fac Was Fac DSF Fac Upp Upp Zhi Pro Machines Accessed 10 | . . . 2 1 . 1 . 1 . 1 4 . Terminals 3 | . . . . 1 . 1 . 1 . . . . Fabricators . | . . . . . . . . . . . . . Repair Stations . | . . . . . . . . . . . . . Recycling Units . | . . . . . . . . . . . . . Scanalyzers . | . . . . . . . . . . . . . Garrison Access . | . . . . . . . . . . . . . Total Hacks 30 | . . . 5 3 . 1 . 3 . 1 17 . Successful 26 | . . . 5 . . 1 . 2 . 1 17 . Failed 4 | . . . . 3 . . . 1 . . . . Catastrophic 2 | . . . . 2 . . . . . . . . Database Lockouts . | . . . . . . . . . . . . . Manual . | . . . . . . . . . . . . . Terminals 7 | . . . . 3 . 1 . 3 . . . . Fabricators . | . . . . . . . . . . . . . Repair Stations . | . . . . . . . . . . . . . Recycling Units . | . . . . . . . . . . . . . Scanalyzers . | . . . . . . . . . . . . . Garrison Access . | . . . . . . . . . . . . . Terminal Hacks 26 | . . . 5 . . 1 . 2 . 1 17 . Record 11 | . . . 4 . . . . 2 . . 5 . Part Schematic 4 | . . . . . . . . . . . 4 . Robot Analysis 4 | . . . . . . . . . . . 4 . Prototype ID Bank 4 | . . . . . . . . . . . 4 . Open Door 2 | . . . 1 . . . . . . 1 . . Open DSF 1 | . . . . . . 1 . . . . . . Fabricator Hacks . | . . . . . . . . . . . . . Repair Station Hacks . | . . . . . . . . . . . . . Recycling Unit Hacks . | . . . . . . . . . . . . . Scanalyzer . | . . . . . . . . . . . . . Garrison Access Hacks . | . . . . . . . . . . . . . Unauthorized Hacks . | . . . . . . . . . . . . . Terminals . | . . . . . . . . . . . . . Fabricators . | . . . . . . . . . . . . . Repair Stations . | . . . . . . . . . . . . . Recycling Units . | . . . . . . . . . . . . . Scanalyzers . | . . . . . . . . . . . . . Garrison Access . | . . . . . . . . . . . . . Data Cores Recovered . | . . . . . . . . . . . . . Used . | . . . . . . . . . . . . . Hacking Detections 2 | . . . . 1 . . . 1 . . . . Full Trace Events 2 | . . . . 1 . . . 1 . . . . Feedback Events . | . . . . . . . . . . . . . Feedback Blocked . | . . . . . . . . . . . . . Robot Schematics Acquired . | . . . . . . . . . . . . . Robots Built . | . . . . . . . . . . . . . Authchips . | . . . . . . . . . . . . . Time . | . . . . . . . . . . . . . Total Robot Build Rating . | . . . . . . . . . . . . . Part Schematics Acquired 4 | . . . . . . . . . . . 4 . Parts Built . | . . . . . . . . . . . . . Authchips . | . . . . . . . . . . . . . Time . | . . . . . . . . . . . . . Total Part Build Rating . | . . . . . . . . . . . . . Parts Repaired . | . . . . . . . . . . . . . Time . | . . . . . . . . . . . . . Parts Recycled . | . . . . . . . . . . . . . Recycled Matter . | . . . . . . . . . . . . . Retrieved Matter . | . . . . . . . . . . . . . Retrieved Components . | . . . . . . . . . . . . . Parts Scanalyzed . | . . . . . . . . . . . . . Part Schematics Acquired . | . . . . . . . . . . . . . Parts Damaged . | . . . . . . . . . . . . . Bothacking | -11 -10 -10 -9 -6 -6 -6 -6 -5 -5 -5 -5 -4 ------------ Run | Yrd Mat Sub Scr Fac Was Fac DSF Fac Upp Upp Zhi Pro Used RIF Installer . | . . . . . . . . . . . . . Robots Hacked . | . . . . . . . . . . . . . Non-combat . | . . . . . . . . . . . . . Combat . | . . . . . . . . . . . . . Robot Hacks Applied . | . . . . . . . . . . . . . Relay Couplers Released . | . . . . . . . . . . . . . Fabnet Peak Effective % . | . . . . . . . . . . . . . Robots Rewired . | . . . . . . . . . . . . . Allies Hacked . | . . . . . . . . . . . . . Hacks Repelled . | . . . . . . . . . . . . . Allies | -11 -10 -10 -9 -6 -6 -6 -6 -5 -5 -5 -5 -4 -------- Run | Yrd Mat Sub Scr Fac Was Fac DSF Fac Upp Upp Zhi Pro Total Allies . | . . . . . . . . . . . . . Largest Group . | . . . . . . . . . . . . . Highest-Rated Group . | . . . . . . . . . . . . . Highest-Rated Ally . | . . . . . . . . . . . . . Total Orders . | . . . . . . . . . . . . . Ally Attacks . | . . . . . . . . . . . . . Total Damage . | . . . . . . . . . . . . . Kills . | . . . . . . . . . . . . . Allies Corrupted . | . . . . . . . . . . . . . Allies Melted . | . . . . . . . . . . . . . Intel | -11 -10 -10 -9 -6 -6 -6 -6 -5 -5 -5 -5 -4 ------- Run | Yrd Mat Sub Scr Fac Was Fac DSF Fac Upp Upp Zhi Pro Active Infowar (turns) . | . . . . . . . . . . . . . Robot Analysis Total 4 | . . . . . . . . . . . 4 . Derelict Logs Recovered 3 | . . . 3 . . . . . . . . . Drone Launches . | . . . . . . . . . . . . . Drone Recoveries . | . . . . . . . . . . . . . Exploration | -11 -10 -10 -9 -6 -6 -6 -6 -5 -5 -5 -5 -4 ------------- Run | Yrd Mat Sub Scr Fac Was Fac DSF Fac Upp Upp Zhi Pro Turns Passed 1963 | 16 40 266 605 156 48 10 34 117 132 126 120 293 Spaces Moved 2862 | 29 54 425 890 162 96 19 68 226 263 252 135 243 Core 2561 | 29 54 425 890 162 96 19 68 226 263 252 77 . Treads . | . . . . . . . . . . . . . Legs 301 | . . . . . . . . . . . 58 243 Wheels . | . . . . . . . . . . . . . Hover . | . . . . . . . . . . . . . Flight . | . . . . . . . . . . . . . Fastest Speed 50 | 50 50 50 50 50 50 50 50 50 50 50 50 120 Average Speed 64 | 50 50 50 66 94 50 50 50 50 50 50 80 120 Slowest Speed 150 | 50 50 50 150 150 50 50 50 50 50 50 120 120 Overloaded Moves . | . . . . . . . . . . . . . Propulsion Burnouts . | . . . . . . . . . . . . . Robots Hopped . | . . . . . . . . . . . . . Potential Cave-ins . | . . . . . . . . . . . . . Cave-ins Triggered . | . . . . . . . . . . . . . Exploration Rate (%) 36 | 3 16 27 76 9 78 1 60 7 52 49 60 40 Regions Visited 12 Branch Regions 6 Pre-discovered Areas 5 | . . 1 1 . . . . . . . 3 . Known Exits Taken 2 | . . . . . . 1 . 1 . . . . Unknown Exits Taken 7 | 1 1 1 1 . . . . . 1 1 1 . Scrap Searched 4 | . . . 4 . . . . . . . . . Spaces Dug . | . . . . . . . . . . . . . Terrain Destroyed . | . . . . . . . . . . . . . Melee . | . . . . . . . . . . . . . Projectile . | . . . . . . . . . . . . . AOE . | . . . . . . . . . . . . . Terrain Rammed . | . . . . . . . . . . . . . Walls Destroyed . | . . . . . . . . . . . . . Machines Disabled . | . . . . . . . . . . . . . Actions | -11 -10 -10 -9 -6 -6 -6 -6 -5 -5 -5 -5 -4 --------- Run | Yrd Mat Sub Scr Fac Was Fac DSF Fac Upp Upp Zhi Pro Total 2957 | 29 66 477 906 167 95 18 67 229 262 251 145 245 Wait 62 | . 13 49 . . . . . . . . . . Move 2851 | 28 53 424 889 162 95 18 67 225 262 251 134 243 Hop . | . . . . . . . . . . . . . Pick Up 18 | 1 . 4 6 . . . . 2 . . 4 1 Fast Attach 6 | . . . 3 . . . . . . . 3 . Attach 9 | . . . 1 1 . . . 2 . . 4 1 Detach 2 | . . . . 2 . . . . . . . . Swap . | . . . . . . . . . . . . . Drop 9 | . . . 7 2 . . . . . . . . Fire . | . . . . . . . . . . . . . Melee . | . . . . . . . . . . . . . Ram . | . . . . . . . . . . . . . Kick . | . . . . . . . . . . . . . Crush . | . . . . . . . . . . . . . Escape Stasis . | . . . . . . . . . . . . . Rewire . | . . . . . . . . . . . . . Trap . | . . . . . . . . . . . . . Miscellaneous . | . . . . . . . . . . . . . Route ------- -11/Scrapyard -10/Materials -10/Subcaves -9/Scraptown (discovered 2 exits: *Fac x2) -6/Factory -6/Waste -6/Factory -6/DSF -5/Factory -5/Upper Caves -5/Upper Caves -5/Zhirov -4/Proximity Caves History --------- Turn | Location | Event 7 | -11/Scrapyard | Discovered new exit (range 15) 17 | -11/Scrapyard | Entered Materials 18 | -10/Materials | Met a group of wandering Federalists 42 | -10/Materials | Discovered new exit (range 8) 57 | -10/Materials | Entered Subcaves 57 | -10/Subcaves | Accompanied by 1 ally 58 | -10/Subcaves | Continued accompanying wandering Federalists (1) 74 | -10/Subcaves | Learned location of Zion (-6) 74 | -10/Subcaves | Met a Zionite searching for "candidates" 270 | -10/Subcaves | Shifting Twisted Machinery released Battle Rifle 304 | -10/Subcaves | Shifting Twisted Machinery released Sub. Machine Gun 305 | -10/Subcaves | Build established: Mutant 317 | -10/Subcaves | Wandering Federalist uncovered a shortcut to Scraptown 323 | -10/Subcaves | Entered Scraptown 382 | -9/Scraptown | Visited Supply Room 389 | -9/Scraptown | Visited The Evicted 394 | -9/Scraptown | Visited UFD Registry 394 | -9/Scraptown | Registered with UFD as "Thermoslicer" 401 | -9/Scraptown | Visited Cave Peace 405 | -9/Scraptown | Visited Fellowship of the Rings 422 | -9/Scraptown | Scanned Subdweller tech in exchange for log data 423 | -9/Scraptown | Learned 8 Research zone layouts 432 | -9/Scraptown | Discovered new exit (range 9) 571 | -9/Scraptown | Visited Scrapoid Pod Storage 575 | -9/Scraptown | Found Scrapoid Pod 585 | -9/Scraptown | Visited DA-N13 Charitable Foundation 589 | -9/Scraptown | Found DCF Scrap (30 items) 598 | -9/Scraptown | Visited Abandonware Association 605 | -9/Scraptown | Visited Junk Repository 649 | -9/Scraptown | Visited Scrap Suit Storage 663 | -9/Scraptown | Received an X-ray algorithm 670 | -9/Scraptown | Visited Sword Containment 697 | -9/Scraptown | Visited Curators Association 748 | -9/Scraptown | Visited Scrapoid Research Area 783 | -9/Scraptown | Visited Cartography Club 807 | -9/Scraptown | Found Surveybot 17 Chip 920 | -9/Scraptown | Discovered new exit (range 5) 928 | -9/Scraptown | Entered Factory 928 | -6/Factory | Evolved 8 slots: Power x1, Propulsion x4, Utility x3 976 | -6/Factory | Spotted B-75 Beast 1084 | -6/Factory | Sucked down chute 1084 | -6/Factory | Entered Waste 1088 | -6/Waste | Spotted C-40 Crusher 1097 | -6/Waste | Spotted C-40 Crusher 1099 | -6/Waste | EMP discharged 1102 | -6/Waste | Spotted C-40 Crusher 1108 | -6/Waste | Spotted C-40 Crusher 1108 | -6/Waste | Spotted C-40 Crusher 1118 | -6/Waste | Spotted C-40 Crusher 1127 | -6/Waste | Discovered new exit (range 11) 1132 | -6/Waste | Entered Factory 1142 | -6/Factory | Identified exit to DSF 1142 | -6/Factory | Entered DSF 1157 | -6/DSF | Additional patrols routed to DSF 1168 | -6/DSF | Discovered new exit (range 16) 1170 | -6/DSF | Core integrity fell below 50% 1176 | -6/DSF | Entered Factory 1176 | -5/Factory | Evolved 2 slots: Propulsion x2 1177 | -5/Factory | Identified exit to Upper Caves 1293 | -5/Factory | Entered Upper Caves 1351 | -5/Upper Caves | Core integrity fell below 50% 1420 | -5/Upper Caves | Discovered new exit (range 9) 1425 | -5/Upper Caves | Entered another Upper Caves area 1426 | -5/Upper Caves | Encountered a Warlord checkpoint 1547 | -5/Upper Caves | Discovered new exit (range 9) 1551 | -5/Upper Caves | Attracted the attention of an 0b10 checkpoint 1551 | -5/Upper Caves | Entered Zhirov 1551 | -5/Zhirov | Discovered new exit (range 3) 1561 | -5/Zhirov | Met Zhirov 1570 | -5/Zhirov | Learned location of Quarantine (-2) 1570 | -5/Zhirov | Learned location of Testing (-3) 1570 | -5/Zhirov | Learned location of Command (-1) 1575 | -5/Zhirov | Zhirov requested help retrieving the SGEMP Prototype 1582 | -5/Zhirov | Found Alien Artifact 1583 | -5/Zhirov | Identified Integrated Dissipator 1583 | -5/Zhirov | Installed Integrated Dissipator, increased core heat dissipation (+20) 1623 | -5/Zhirov | Found Alien Artifact 1671 | -5/Zhirov | Entered Proximity Caves 1728 | -4/Proximity Caves | Spotted B-86 Titan 1749 | -4/Proximity Caves | Core integrity fell below 20% 1964 | -4/Proximity Caves | Destroyed by S-27 Virus with Autogun Last Messages --------------- 01739_ B-86 Titan activates siege mode. 01745_ Penetrated by Slug. 01748_ Slug penetrates Wall. 01751_ Penetrated by Slug. 01758_ B-86 Titan exits siege mode. 01758_ Penetrated by Slug. 01762_ System corrupted: IFF burst signal emitted. 01787_ System corrupted: Component data lost. 01803_ 3D-WZ6(k) breaks down the debris. 01860_ System corrupted: Matter fused (-8). 01892_ Acquired 4 matter. 01893_ Acquired 13 matter. 01900_ Penetrated by Slug. 01934_ C-30 ARC bursts open, deploying its payload. 01934_ S-27 Virus unfolds itself. 01942_ System corrupted: Component data lost. 01952_ Penetrated by Slug. 01953_ B-86 Titan activates siege mode. Map ----- +----------------------------------------------------+ | | | | | ?????????????????????????????????????????????????? | | ?????????????????????????????????????????????????? | | ?????????????????????????????????????????????????? | | ?????????????????????????????????????????????????? | | ?????????????????????????????????????????????????? | | ?????????????????????????????????????????????????? | | ?????????????????????????????????????????????????? | | ?????????????????????????????????????????????????? | | ?????????????????????????????????????????????????? | | ?????????????????????????????????????????????????? | | ?????????????????????????????????????????????????? | | ?????????????????????????????????????????????????? | | ?????????????????????????????????????????????????? | | ?????????????????????????????????????????????????? | | ?????????????######???????????????#######??###???? | | ######??###### ##????#######??## ### #???? | | ## ##??## #?## #???? | | ? #### ### #????? | | ????# ###???? | | ???## #???? | | ???# ####### ## #???? | | ???# #????# s ## #???? | | ???## ###### ## " ## ##??? | | ????# @### # "" ##?? | | ???# ## ## " #?? | | ???# #### #### ## ## "" " #?? | | ??# ????# #??# ## ## " "" #?? | | ?# ?????# #??## ### ## "" #?? | | ????? #???## #### ### ### | | ???? "#????## ####?# "" | | ? ???? ## ##?????##### #????# "" | | ????? ##?# ?????????## ##?### | | ????## #??? ?????????#!!"### | | ?????###???? ????????## " #### | | ???????????## ???????## "%" ## ##?? | | ????????????# ?? "" """ #?? | | ???????????? ?? "" "## "" #?? | | ???????????? ? #" #### #### #?? | | ????????????? ????## ## #??#####??# ##? | | ?????????????????????# ## #????????# ## ## | | ?????????????????????# ## #????????######## # | | ?????????????????????# ## #??????????????## # | | ???####??????????????# ## ?????????????## # | | ???# ##?????????##### ## ?????????????# # | | ???# ##????????# ######????????????# # | | ##### ##???????# #?????????????????#### # | | # "" ######### #####????????????????????# # | | # #????????????????????????# ## | +----------------------------------------------------+ Best States ------------- Heat Dissipation 60 Energy Generation 25 Energy Capacity 340 Matter Stores 300 Matter Capacity 300 Sight Range 16 Terrain Scan Density 1210 Armor Coverage 150 Evasion (%) 55 Offensive Hacking 12 Defensive Hacking 14 Item Schematics ----------------- Assault Drone Bay | -5/Zhirov | Free Exp. Heat Sink | -5/Zhirov | Free Exp. Optical Array | -5/Zhirov | Free Imp. Arc Thrower | -5/Zhirov | Free Robot Schematics ------------------ None Fabricated ------------ Nothing Repaired ---------- Nothing Alien Tech Used ----------------- Integrated Dissipator Achievements -------------- None Challenges ------------ None Game ------ Seed HeavyTransmissionChainsaw Manual? 0 Play Time 00:22:35 Cumulative 103.2 hours Start 2025.08.05 @ 14:00:31 End 2025.08.05 @ 14:21:53 Sessions 1 Manual Loads 0 Difficulty Rogue Special Mode None Game No. 185 Rogue 185 Adventurer 0 Explorer 0 Win Type - Total 1 Types 1/0/0/0/0/0/0/0/0/0 Lore% 66 Gallery% 60 Achievement% 43 Wizard Run 0 Options --------- Layout 1 ASCII 0 Keyboard 0 Movement Mouse Keybinds 0 Fullscreen 1 Font 24/Smallcaps Map View 50x35 Zoom Use 0% Tactical HUD 1 Map Filters NONE Filters NONE Steam 1 RUN: f3cab3aa-fe60-479f-b933-cc0b6f064023